[Event "VII Totalizator Sportowy 2022"]
[Site "Bydgoszcz"]
[Date "2022.07.03"]
[Round "9.22"]
[White "Zalega, Maciej"]
[Black "Hulka, Valentyn"]
[Result "1/2-1/2"]
[ECO "B53"]
[WhiteElo "2051"]
[BlackElo "2123"]
[Annotator "NA RC"]
[PlyCount "107"]
[EventDate "2022.06.25"]
[EventType "swiss"]
[EventCountry "POL"]
[SourceTitle "playchess.com"]
[Source "ChessBase"]
[SourceQuality "1"]
[TimeControl "40/5400+30:1800+30"]

1. e4 {[%emt 0:00:01]} c5 {[%emt 0:00:03]} 2. Nf3 {[%emt 0:00:03]} d6 {[%emt 0:00:05]} 3. d4 {[%emt 0:00:03]} cxd4 {[%emt 0:00:05]} 4. Qxd4 {[%emt 0:00:03]} a6 {[%emt 0:00:40]} 5. c4 {[%emt 0:01:12]} Nc6 {[%emt 0:00:08]} 6. Qe3 {[%emt 0:00:58]} Nf6 {[%emt 0:00:23]} 7. h3 {[%emt 0:05:38]} g6 {[%emt 0:00:33]} 8. Be2 {[%emt 0:01:30]} Bg7 {[%emt 0:00:34]} 9. O-O {[%emt 0:00:47]} O-O {[%emt 0:00:16]} 10. Nc3 {[%emt 0:01:23]} Nd7 {[%emt 0:01:47]} 11. Rd1 {[%emt 0:02:01]} Nc5 {[%emt 0:01:18]} 12. Rb1 {[%emt 0:12:23]} f5 {[%emt 0:10:13]} 13. b4 {[%emt 0:25:50]} f4 {[%emt 0:02:26]} 14. Qd2 {[%emt 0:00:33]} Ne6 {[%emt 0:06:54]} 15. Nd5 {[%emt 0:09:46]} Ned4 {[%emt 0:07:05]} 16. Nxd4 {[%emt 0:24:02]} Nxd4 {[%emt 0:00:24]} 17. Bb2 {[%emt 0:00:03]} Nxe2+ {[%emt 0:02:20]} 18. Qxe2 {[%emt 0:00:00]} f3 {[%emt 0:00:32]} 19. Qe3 {[%emt 0:00:02]} e5 {[%emt 0:03:40]} 20. Nb6 {[%emt 0:02:27]} Bxh3 {[%emt 0:01:38]} 21. gxh3 {[%emt 0:05:56]} Qh4 {[%emt 0:00:01]} 22. Kf1 {[%emt 0:01:18]} Qxh3+ {[%emt 0:00:09]} 23. Ke1 {[%emt 0:00:03]} Bh6 {[%emt 0:00:10]} 24. Qd3 {[%emt 0:00:04]} Qh1+ {[%emt 0:02:13]} 25. Qf1 {[%emt 0:00:05]} Qh4 {[%emt 0:00:04]} 26. Rd3 {[%emt 0:02:01]} Qxe4+ {[%emt 0:00:48]} 27. Kd1 {[%emt 0:00:01]} Rad8 {[%emt 0:04:46]} 28. Kc2 {[%emt 0:02:44]} Qc6 {[%emt 0:03:27]} 29. Qh3 {[%emt 0:02:39]} Qxb6 {[%emt 0:01:07]} 30. Qxh6 {[%emt 0:00:02]} Rc8 {[%emt 0:00:53]} 31. Rh1 {[%emt 0:01:33]} Rf7 {[%emt 0:01:12]} 32. Kb1 {[%emt 0:00:38]} Qxb4 {[%emt 0:00:46]} 33. Rxf3 {[%emt 0:00:32]} Qxc4 {[%emt 0:00:12]} 34. Ka1 {[%emt 0:00:26]} Qd5 {[%emt 0:06:09]} 35. Rg3 {[%emt 0:00:15]} Qe6 {[%emt 0:00:50]} 36. Rhg1 {[%emt 0:00:17]} Rf6 {[%emt 0:01:03]} 37. f4 {[%emt 0:00:56]} Rc2 {[%emt 0:00:15]} 38. Rb3 {[%emt 0:00:33]} Qf7 {[%emt 0:00:35]} 39. Kb1 {[%emt 0:00:17]} Rc4 {[%emt 0:01:21]} 40. f5 {[%emt 0:00:00]} Rxf5 {[%emt 0:00:00]} 41. Qh1 {[%emt 0:02:26]} Rc6 {[%emt 0:08:34]} 42. Bc1 {[%emt 0:07:47]} d5 {[%emt 0:03:28]} 43. Rd1 {[%emt 0:03:05]} d4 {[%emt 0:02:39]} 44. Bh6 {[%emt 0:01:01]} Qd7 {[%emt 0:06:50]} 45. Qe4 {[%emt 0:04:11]} Rh5 {[%emt 0:07:41]} 46. Bc1 {[%emt 0:09:13]} b5 {[%emt 0:01:47]} 47. Ka1 {[%emt 0:04:19]} Rc5 {[%emt 0:02:34]} 48. Ba3 {[%emt 0:01:01]} Qd5 {[%emt 0:00:18]} 49. Qe2 {[%emt 0:01:00]} Rc8 {[%emt 0:00:31]} 50. Rf3 {[%emt 0:00:32]} Rh2 {[%emt 0:06:18]} 51. Rf2 {[%emt 0:01:29]} Rxf2 {[%emt 0:00:13]} 52. Qxf2 {[%emt 0:00:03]} a5 {[%emt 0:00:21]} 53. Rf1 {[%emt 0:00:43]} b4 {[%emt 0:00:10]} 54. Bc1 {[%emt 0:00:11]} 1/2-1/2

[Event "VII Totalizator Sportowy 2022"]
[Site "Bydgoszcz"]
[Date "2022.07.03"]
[Round "9.23"]
[White "Starosciak, Szymon"]
[Black "Malczyk, Radoslaw"]
[Result "0-1"]
[ECO "B39"]
[WhiteElo "1901"]
[BlackElo "2067"]
[Annotator "NA RC"]
[PlyCount "72"]
[EventDate "2022.06.25"]
[EventType "swiss"]
[EventCountry "POL"]
[SourceTitle "playchess.com"]
[Source "ChessBase"]
[SourceQuality "1"]
[TimeControl "40/5400+30:1800+30"]

1. e4 {[%emt 0:00:03]} c5 {[%emt 0:00:11]} 2. Nf3 {[%emt 0:00:06]} g6 {[%emt 0:00:11]} 3. c4 {[%emt 0:03:24]} Nc6 {[%emt 0:00:10]} 4. d4 {[%emt 0:00:28]} cxd4 {[%emt 0:00:06]} 5. Nxd4 {[%emt 0:00:05]} Nf6 {[%emt 0:00:07]} 6. Nc3 {[%emt 0:00:54]} Bg7 {[%emt 0:00:04]} 7. Be3 {[%emt 0:01:18]} Ng4 {[%emt 0:00:13]} 8. Qxg4 {[%emt 0:00:07]} Nxd4 {[%emt 0:00:04]} 9. Qd1 {[%emt 0:00:10]} Ne6 {[%emt 0:00:06]} 10. Qd2 {[%emt 0:02:04]} d6 {[%emt 0:02:57]} 11. Be2 {[%emt 0:02:10]} Bd7 {[%emt 0:00:12]} 12. O-O {[%emt 0:01:40]} O-O {[%emt 0:00:11]} 13. Rac1 {[%emt 0:01:56]} a5 {[%emt 0:01:33]} 14. b3 {[%emt 0:01:26]} Nc5 {[%emt 0:00:32]} 15. f3 {[%emt 0:00:51]} Bc6 {[%emt 0:00:12]} 16. Rfd1 {[%emt 0:04:50]} f5 {[%emt 0:03:23]} 17. exf5 {[%emt 0:01:00]} gxf5 {[%emt 0:00:08]} 18. Nd5 {[%emt 0:04:16]} Kh8 {[%emt 0:05:42]} 19. Nf4 {[%emt 0:04:04]} Rg8 {[%emt 0:03:00]} 20. Qe1 {[%emt 0:14:09]} Qe8 {[%emt 0:02:29]} 21. Qh4 {[%emt 0:03:03]} Qf7 {[%emt 0:03:41]} 22. Kh1 {[%emt 0:04:51]} Ne6 {[%emt 0:03:08]} 23. c5 {[%emt 0:11:43]} Nxf4 {[%emt 0:01:33]} 24. Bxf4 {[%emt 0:00:39]} d5 {[%emt 0:00:12]} 25. Bg5 {[%emt 0:04:08]} e5 {[%emt 0:00:39]} 26. a3 {[%emt 0:06:59]} Qg6 {[%emt 0:05:17]} 27. f4 {[%emt 0:06:16]} e4 {[%emt 0:00:08]} 28. b4 {[%emt 0:01:34]} axb4 {[%emt 0:00:27]} 29. axb4 {[%emt 0:00:05]} Ra2 {[%emt 0:12:46]} 30. Bh5 {[%emt 0:01:12]} Qe6 {[%emt 0:00:06]} 31. b5 {[%emt 0:04:54]} Bxb5 {[%emt 0:14:55]} 32. Rb1 {[%emt 0:00:41]} Bc6 {[%emt 0:01:21]} 33. Rb3 {[%emt 0:00:25]} Rga8 {[%emt 0:12:40]} 34. Rg3 {[%emt 0:02:08]} Ra1 {[%emt 0:00:54]} 35. Be7 {[%emt 0:00:59]} Rxd1+ 36. Bxd1 {[%emt 0:00:02]} Ra1 {[%emt 0:00:53]} 0-1

[Event "VII Totalizator Sportowy 2022"]
[Site "Bydgoszcz"]
[Date "2022.07.04"]
[Round "10.2"]
[White "Heberla, Bartlomiej"]
[Black "Lewtak, Damian"]
[Result "1-0"]
[ECO "A41"]
[WhiteElo "2576"]
[BlackElo "2384"]
[Annotator "TA"]
[PlyCount "31"]
[EventDate "2022.06.25"]
[EventType "swiss"]
[EventCountry "POL"]
[SourceTitle "playchess.com"]
[Source "ChessBase"]
[SourceQuality "1"]
[TimeControl "40/5400+30:1800+30"]

{[%evp 9,31,37,28,5,61,66,63,61,58,49,86,89,85,59,137,152,193,217,337,338,656,654,597,599]} 1. d4 {[%emt 0:06:57]} d6 {[%emt 0:00:07][%cal Bd7d6,Bd6d5][%mdl 32]} 2. e4 {[%emt 0:00:59]} Nf6 {[%emt 0:00:05]} 3. Bd3 {[%emt 0:00:10]} e5 {[%emt 0:00:10]} 4. c3 {[%emt 0:00:03]} Nbd7 {[%emt 0:02:36]} 5. Nf3 {[%emt 0:00:23]} d5 {[%emt 0:00:55]} 6. dxe5 {[%emt 0:01:42] B07: Pirc Defence: Miscellaneous Systems.} (6. Qe2 $5 {[%cal Re4d5]}) 6... Nxe4 {[%emt 0:00:15] [#]} (6... dxe4 $11 7. exf6 exf3) 7. Bc2 $146 {[%emt 0:09:19]} ({Predecessor:} 7. O-O Ndc5 8. Be2 Be7 9. Be3 O-O 10. Nbd2 Bg4 11. h3 Bh5 12. Nd4 Bxe2 13. Qxe2 Nxd2 14. Bxd2 {1-0 (34) Martinez Alcantara,J (2620)-Tomb,M (2084) Chess.com INT 2020}) 7... c6 {[%emt 0:04:37]} 8. O-O {[%emt 0:01:40][%cal Oc3c4] White is slightly better.} Be7 {[%emt 0:11:29]} 9. c4 {[%emt 0:07:07]} Nb6 {[%emt 0:01:22]} 10. cxd5 {[%emt 0:00:19]} cxd5 {[%emt 0:00:35]} 11. Nd4 {[%emt 0:00:12]} f6 {[%emt 0:06:34]} (11... O-O $14) 12. Nc3 $16 {[%emt 0:07:04][%cal Bb1c3,Bc3e4,Be4g3][%mdl 32]} O-O {[%emt 0:04:53]} 13. Nxe4 {[%emt 0:07:49]} fxe5 {[%emt 0:06:37]} (13... dxe4 {was worth a try.} 14. Bb3+ (14. Bxe4 fxe5 15. Qb3+ Kh8 $14) 14... Nd5) 14. Ng3 $18 {[%emt 0:07:24]} ({Not} 14. Qh5 dxe4 15. Qxe5 Bf6 16. Qxe4 g6 $18) 14... exd4 $2 {[%emt 0:00:26] [#]} (14... g6 15. Nf3 (15. Bh6 exd4 16. Bxf8 Bxf8 $16) 15... Bg4) 15. Qh5 $1 {[%emt 0:00:20]} h6 {[%emt 0:05:41] [#]} 16. Bxh6 $1 {[%emt 0:01:18][%mdl 512] Black did not feel at home in the position after the opening.  Weighted Error Value: White=0.03 (flawless) /Black=0.56} 1-0

[Event "VII Totalizator Sportowy 2022"]
[Site "Bydgoszcz"]
[Date "2022.07.04"]
[Round "10.3"]
[White "Maksimenko, Andrei"]
[Black "Krasenkow, Michal"]
[Result "1/2-1/2"]
[ECO "D85"]
[WhiteElo "2434"]
[BlackElo "2576"]
[Annotator "TA"]
[PlyCount "24"]
[EventDate "2022.06.25"]
[EventType "swiss"]
[EventCountry "POL"]
[SourceTitle "playchess.com"]
[Source "ChessBase"]
[SourceQuality "1"]
[TimeControl "40/5400+30:1800+30"]

{[%evp 15,24,19,16,14,14,0,0,0,0,0,0]} 1. d4 {[%emt 0:00:18]} Nf6 {[%emt 0:00:11]} 2. c4 {[%emt 0:00:11]} g6 {[%emt 0:00:11]} 3. Nc3 {[%emt 0:00:11]} d5 {[%emt 0:00:09]} 4. cxd5 {[%emt 0:00:26]} Nxd5 {[%emt 0:00:07]} 5. e4 {[%emt 0:00:08]} Nxc3 {[%emt 0:00:07]} 6. bxc3 {[%emt 0:00:06]} Bg7 {[%emt 0:00:10]} 7. Be3 {[%emt 0:00:19]} c5 {[%emt 0:00:18]} 8. Nf3 {[%emt 0:00:12][%cal Bg1f3,Bf3d2,Bd2b3][%mdl 32]} Qa5 {[%emt 0:00:16] The position is equal.} 9. Nd2 {[%emt 0:00:46] D85: Exchange Grünfeld: Unusual White 7th moves and lines with 7 Nf3.} O-O {[%emt 0:00:55] 9...Nd7 is the recent fashion.} 10. Nb3 {[%emt 0:00:27] [#]} Qxc3+ $146 {[%emt 0:00:15]} ({Predecessor:} 10... Qc7 11. Nxc5 Nd7 12. Na4 a6 13. Rc1 b5 14. Nb2 Bb7 15. f3 Qa5 16. Qb3 e5 {0-1 (64) Grischuk,A (2776)-Nepomniachtchi,I (2792) chess24.com INT 2021}) 11. Bd2 {[%emt 0:00:06]} Qb2 {[%emt 0:00:06]} 12. Bc1 {[%emt 0:00:04]} Qc3+ {An interesting draw.  Weighted Error Value: White=0.05 (flawless) /Black=0.00 (flawless)} 1/2-1/2

[Event "VII Totalizator Sportowy 2022"]
[Site "Bydgoszcz"]
[Date "2022.07.04"]
[Round "10.4"]
[White "Czarnota, Pawel"]
[Black "Kucza, Karol"]
[Result "1/2-1/2"]
[ECO "C81"]
[WhiteElo "2502"]
[BlackElo "2305"]
[Annotator "TA"]
[PlyCount "185"]
[EventDate "2022.06.25"]
[EventType "swiss"]
[EventCountry "POL"]
[SourceTitle "playchess.com"]
[Source "ChessBase"]
[SourceQuality "1"]
[TimeControl "40/5400+30:1800+30"]

{[%evp 29,185,6,11,7,3,0,0,0,0,0,8,8,6,12,0,0,4,20,20,20,10,11,9,12,19,0,8,8,3,6,8,8,8,8,11,0,136,100,113,107,194,203,793,753,727,0,0,0,0,0,0,0,0,0,0,0,0,0,0,0,0,0,0,0,0,0,0,0,0,0,0,0,0,0,0,0,0,0,0,0,0,0,0,0,0,0,0,0,0,0,0,0,0,0,0,0,0,0,0,0,0,0,0,0,0,0,0,0,0,0,0,0,0,0,0,0,0,0,0,0,0,0,0,0,0,0,0,0,0,0,8,0,0,0,0,0,0,0,0,0,0,0,0,0,0,0,0,0,0,0,0,0,0,0,0,0,0,0]} 1. e4 {[%emt 0:00:05]} e5 {[%emt 0:00:08]} 2. Nf3 {[%emt 0:00:19]} Nc6 {[%emt 0:00:10]} 3. Bb5 {[%emt 0:00:59][%cal Bf1b5,Bb5a4,Ba4b3,Bb3c4][%mdl 32]} a6 {[%emt 0:00:24]} 4. Ba4 {[%emt 0:00:27]} Nf6 {[%emt 0:00:08]} 5. O-O {[%emt 0:00:10]} Nxe4 {[%emt 0:01:07]} 6. d4 {[%emt 0:01:37]} b5 {[%emt 0:00:08]} 7. Bb3 {[%emt 0:00:05]} d5 {[%emt 0:00:04]} 8. dxe5 {[%emt 0:00:10]} Be6 {[%emt 0:00:09]} 9. Qe2 {[%emt 0:01:22]} Be7 {[%emt 0:03:25]} 10. Rd1 {[%emt 0:00:16]} O-O {[%emt 0:00:18]} 11. c4 {[%emt 0:00:36]} bxc4 {[%emt 0:00:09]} 12. Bxc4 {[%emt 0:00:05]} Bc5 {[%emt 0:00:06]} 13. Be3 {[%emt 0:00:35]} Bxe3 {[%emt 0:00:07]} 14. Qxe3 {[%emt 0:00:04]} Qb8 {[%emt 0:00:07]} 15. Bb3 {[%emt 0:00:22]} Qb6 {[%emt 0:00:06]} 16. Qxb6 {[%emt 0:02:17] C81: Open Ruy Lopez: Keres Variation (9 Qe2).} cxb6 {[%emt 0:00:08]} 17. Na3 {[%emt 0:00:07]} Rfd8 {[%emt 0:04:04]} 18. Nd4 {[%emt 0:03:50]} Nxe5 {[%emt 0:16:31][%cal Bc6e5,Be5g4,Bg4e3][%mdl 32]} 19. f4 {[%emt 0:00:41]} Ng4 {[%emt 0:00:05]} 20. f5 {[%emt 0:00:27]} Bc8 {[%emt 0:00:27]} 21. Nc6 $1 {[%emt 0:00:16][%csl LRd5,LRd8]} Rd7 {[%emt 0:02:02]} 22. Bxd5 {[%emt 0:01:09]} Ne3 $132 {[%emt 0:00:11][%csl LRd1,LRd5,LRf5][%mdl 2048] [#] Black puts up resistance} 23. Ne7+ $1 {[%emt 0:00:58]} Rxe7 {[%emt 0:00:07]} 24. Bxa8 {[%emt 0:00:05]} Nxd1 {[%emt 0:00:06]} 25. Rxd1 {[%emt 0:00:06]} Nf6 {[%emt 0:00:36]} 26. Bc6 {[%emt 0:00:15]} Bd7 {[%emt 0:07:43] [#]} 27. Rd6 $146 {[%emt 0:22:48]} ({Predecessor:} 27. Bxd7 Rxd7 28. Rxd7 Nxd7 29. Kf2 Kf8 30. Ke3 Ke7 31. Ke4 Nf6+ 32. Kd4 Ng4 33. Kd5 {1-0 (58) Walter,G (2431)-Bolz,B (2302) ICCF email 2014}) 27... h5 {[%emt 0:30:46][%cal Of6g4]} 28. Bxd7 {[%emt 0:05:50]} Rxd7 {[%emt 0:01:13]} 29. Rxd7 {[%emt 0:11:54]} Nxd7 $11 {[%emt 0:00:07][%mdl 4096] Endgame KN-KN} 30. Kf2 {[%emt 0:00:04]} Kf8 {[%emt 0:02:39]} 31. Ke3 {[%emt 0:01:07]} Ke7 {[%emt 0:00:09]} 32. Ke4 {[%emt 0:02:32]} Kd6 {[%emt 0:07:24]} (32... Nc5+ $11 {keeps the balance.} 33. Kd4 Kf6) 33. Nc4+ $16 {[%emt 0:04:47]} Kc5 {[%emt 0:00:50] [#]} 34. Ne5 {[%emt 0:01:02]} Nxe5 {[%emt 0:07:08]} (34... Nf6+ $16 {was necessary.} 35. Kf3 Kd4 36. Nxf7 a5) 35. Kxe5 {[%emt 0:00:10] KP-KP} b5 $2 {[%emt 0:01:08]} (35... a5 36. g3 a4) 36. f6 {[%emt 0:21:08]} g6 {[%emt 0:00:10] [#]} 37. b4+ $2 {[%emt 0:00:11]} (37. h4 $1 $18 {Black must now prevent a3.} a5 38. Ke4) 37... Kxb4 $11 {[%emt 0:03:39] The position is equal.} 38. Kd6 {[%emt 0:00:09]} Ka3 $1 {[%emt 0:00:04]} 39. Ke7 {[%emt 0:00:04]} Kxa2 {[%emt 0:00:05]} 40. Kxf7 {[%emt 0:00:00]} b4 {[%emt 0:00:00]} 41. Kxg6 {[%emt 0:01:12] White threatens f7 and mate. K3P-K3P} b3 {[%emt 0:00:12] aiming for ...b2.} 42. f7 {[%emt 0:00:08]} b2 {[%emt 0:00:04]} 43. f8=Q {[%emt 0:00:09] Qf7+ would kill now.} b1=Q+ {[%emt 0:00:06]} 44. Kxh5 {[%emt 0:01:53] Qf2+ is the strong threat. KQ-KQ} Qh7+ {[%emt 0:06:24]} 45. Qh6 {[%emt 0:01:04]} Qf5+ {[%emt 0:00:10]} 46. Kh4 {[%emt 0:01:43]} Qf2+ {[%emt 0:00:20]} 47. Kh3 {[%emt 0:00:20]} Qf5+ {[%emt 0:04:01]} 48. g4 {[%emt 0:08:14]} Qf3+ {[%emt 0:00:07]} 49. Kh4 {[%emt 0:00:06]} Qf2+ {[%emt 0:00:07]} 50. Kg5 {[%emt 0:00:13]} Qe3+ {[%emt 0:03:05]} 51. Kg6 {[%emt 0:00:32]} Qe4+ {[%emt 0:01:29]} 52. Kf7 {[%emt 0:00:39]} Qb7+ $1 {[%emt 0:03:11]} 53. Kg8 {[%emt 0:02:08]} (53. Kg6 $5 {[%cal Rh6d2]} Qe4+ 54. Kf7 Qb7+ 55. Kf8 Qc8+ 56. Kf7 Qb7+ $11) 53... Qc8+ {[%emt 0:00:51]} 54. Kh7 {[%emt 0:00:14]} (54. Kf7 $5 {[%cal Rh6e6]} Qd7+ 55. Kf8 Qd8+ 56. Kg7 Qe7+ 57. Kg8 Qd8+ 58. Qf8 Qg5+ 59. Qg7 Qd8+ 60. Kf7 $11) 54... Qc2+ {[%emt 0:00:29]} ({Much less strong is} 54... Qxg4 55. Qxa6+ Kb3 56. Qd3+ Kb4 57. Qg3 Qf5+ 58. Kg7 $11) 55. Kg7 {[%emt 0:00:33]} Qc7+ {[%emt 0:00:14]} 56. Kg6 {[%emt 0:02:37] Strongly threatening Qd2+.} (56. Kf6 $5 {[%cal Rh6d2]} Qd6+ 57. Kg5 Qe5+ 58. Kg6 $11) 56... Qc2+ {[%emt 0:01:18]} 57. Kf6 {[%emt 0:01:06]} Qc3+ {[%emt 0:01:00]} 58. Kf5 {[%emt 0:01:09]} Qd3+ {[%emt 0:01:02]} 59. Ke5 $1 {[%emt 0:00:53]} Qe2+ {[%emt 0:00:47]} 60. Kd5 $1 {[%emt 0:01:26]} Qb5+ {[%emt 0:01:29]} 61. Kd4 {[%emt 0:01:04]} Qb4+ {[%emt 0:03:14]} 62. Kd3 {[%emt 0:02:02] White wants to mate with Qd2+.} Qb1+ {[%emt 0:03:24]} 63. Kd2 $1 {[%emt 0:03:15]} Qb4+ {[%emt 0:00:05]} 64. Ke3 {[%emt 0:01:29]} Qe1+ {[%emt 0:00:18]} 65. Kd3 {[%emt 0:00:30] Intending Qd2+ and mate.} Qf1+ {[%emt 0:04:41]} 66. Kd4 {[%emt 0:00:35]} Qd1+ {[%emt 0:01:08]} 67. Kc5 {[%emt 0:03:21]} Qg1+ {[%emt 0:00:08]} 68. Kd5 {[%emt 0:01:04]} Qg2+ {[%emt 0:00:22]} 69. Ke5 {[%emt 0:02:44]} (69. Kc5 $5 {[%cal Rh6a6]} Qg1+ 70. Kd5 Qg2+ 71. Kd4 Qxg4+ 72. Kc3 Qf3+ 73. Kd4 $11) 69... Qe2+ {[%emt 0:00:34]} 70. Kf5 {[%emt 0:00:39]} Qd3+ {[%emt 0:00:07]} 71. Ke6 {[%emt 0:00:26]} Qe4+ {[%emt 0:00:35]} 72. Kf7 {[%emt 0:02:43] And now Qe6+ would win.} Qb7+ $1 {[%emt 0:00:21]} 73. Kg6 {[%emt 0:00:09]} Qe4+ {[%emt 0:01:03]} 74. Kh5 {[%emt 0:01:29]} Qe5+ {[%emt 0:00:32]} 75. g5 {[%emt 0:00:26]} Qxh2+ {[%emt 0:00:05]} 76. Kg6 {[%emt 0:00:09]} Qc2+ {[%emt 0:00:22]} 77. Kf7 {[%emt 0:00:29]} Qc7+ {[%emt 0:00:23]} 78. Kg8 {[%emt 0:00:57]} Qc4+ {[%emt 0:02:16]} 79. Kh8 {[%emt 0:00:37]} a5 {[%emt 0:02:37]} 80. g6 {[%emt 0:00:36]} Qc8+ {[%emt 0:00:26]} 81. Kh7 {[%emt 0:00:06] Hoping for Qh2+.} Qc2 {[%emt 0:00:07] Inhibits Qh2.} 82. Qf4 {[%emt 0:03:13]} a4 {[%emt 0:00:24]} 83. Kh6 {[%emt 0:00:40]} Qc6 {[%emt 0:00:18]} 84. Qd2+ {[%emt 0:10:16]} Kb3 {[%emt 0:01:31]} 85. Qd3+ {[%emt 0:00:25]} Kb2 {[%emt 0:00:07]} 86. Qe2+ {[%emt 0:00:55]} Kb1 {[%emt 0:01:10]} 87. Qe1+ {[%emt 0:00:26]} Kb2 {[%emt 0:01:59]} 88. Kh7 {[%emt 0:02:41]} Qc2 {[%emt 0:00:24]} 89. Qe5+ {[%emt 0:00:20]} Kb1 {[%emt 0:00:56]} 90. Qd6 {[%emt 0:00:54]} Kb2 {[%emt 0:00:22]} 91. Qb6+ {[%emt 0:01:08]} Ka1 {[%emt 0:01:33]} 92. Qd6 {[%emt 0:03:02]} Kb2 {[%emt 0:00:08]} 93. Qb6+ {[%emt 0:01:20] Weighted Error Value: White=0.11 (very precise) /Black=0.11 (very precise)} 1/2-1/2

[Event "VII Totalizator Sportowy 2022"]
[Site "Bydgoszcz"]
[Date "2022.07.04"]
[Round "10.5"]
[White "Gumularz, Szymon"]
[Black "Jakubowski, Krzysztof"]
[Result "1/2-1/2"]
[ECO "D38"]
[WhiteElo "2513"]
[BlackElo "2475"]
[Annotator "TA"]
[PlyCount "82"]
[EventDate "2022.06.25"]
[EventType "swiss"]
[EventCountry "POL"]
[SourceTitle "playchess.com"]
[Source "ChessBase"]
[SourceQuality "1"]
[TimeControl "40/5400+30:1800+30"]

{[%evp 9,82,9,34,10,10,10,6,0,33,34,39,35,26,25,43,38,65,12,25,0,0,0,0,0,27,20,45,46,44,53,54,66,55,32,31,12,9,0,18,10,35,22,23,24,23,19,52,54,60,52,92,95,90,66,97,-58,-64,-69,-67,-75,-72,-73,-71,-73,-72,-63,-53,-55,-55,-50,-55,-46,0,-55,-38]} 1. d4 {[%emt 0:00:02]} Nf6 {[%emt 0:00:22]} 2. c4 {[%emt 0:00:05]} e6 {[%emt 0:00:10]} 3. Nf3 {[%emt 0:00:11]} d5 {[%emt 0:00:26]} 4. Nc3 {[%emt 0:00:08]} Bb4 {[%emt 0:00:05]} 5. Qb3 {[%emt 0:04:00]} a5 6. a3 {[%emt 0:05:55] D38: Queen's Gambit Declined: Ragozin Defence (4 Nf3 Bb4).} a4 {[%emt 0:01:05]} 7. Qc2 {[%emt 0:00:06]} ({But not} 7. Qxb4 Nc6 8. Qb5 Ra5 $15) 7... Bxc3+ {[%emt 0:00:31]} 8. bxc3 {[%emt 0:00:07][%cal Bb2c3,Bc3c4][%mdl 32] The position is equal.} h6 {[%emt 0:18:48] [#] Prevents Bg5.} 9. e3 $146 {[%emt 0:17:11]} ({Predecessor:} 9. cxd5 exd5 10. Bf4 O-O 11. e3 Be6 12. Bd3 Nbd7 13. h3 c5 14. Qb2 Qa5 15. O-O {1-0 (32) Babula,V (2576)-Zwardon,V (2482) Usti nad Labem 2022}) 9... O-O {[%emt 0:03:53]} 10. cxd5 {[%emt 0:07:08]} exd5 {[%emt 0:00:18][%cal Oc7c5]} 11. c4 {[%emt 0:03:22]} c5 {[%emt 0:23:45]} 12. dxc5 {[%emt 0:09:01]} Na6 {[%emt 0:06:57]} 13. c6 {[%emt 0:10:05]} (13. Qxa4 Bd7 14. Qc2 Nxc5 $11) (13. cxd5 $14 Qxd5 14. Bb2 (14. Qxa4 Bd7 $11)) 13... bxc6 {[%emt 0:03:07]} 14. cxd5 {[%emt 0:07:57]} cxd5 {[%emt 0:01:28]} 15. Be2 {[%emt 0:02:21]} Ne4 {[%emt 0:03:25]} 16. O-O {[%emt 0:02:51]} Bf5 {[%emt 0:02:42][%cal Oe4g3]} (16... Nac5 $5 {[%cal Rc5b3]}) 17. Nd4 {[%emt 0:01:47]} ({Reject} 17. Qxa4 Nc3 18. Qxa6 Rxa6 19. Bxa6 Qb6 $17) 17... Bh7 {[%emt 0:01:09][%cal Oe4f2]} 18. Qxa4 {[%emt 0:01:18]} Nc3 {[%emt 0:03:07]} 19. Qb3 {[%emt 0:07:20]} Nxe2+ {[%emt 0:00:34]} 20. Nxe2 {[%emt 0:00:03]} Nc5 {[%emt 0:00:04]} 21. Qb4 {[%emt 0:03:45]} Qd6 {[%emt 0:10:33]} 22. Nd4 {[%emt 0:06:29]} Rfb8 {[%emt 0:03:17]} 23. Qc3 {[%emt 0:00:14]} Rc8 {[%emt 0:01:15]} 24. Bd2 {[%emt 0:05:17][%cal Bc1d2,Bd2e1,Be1b4][%mdl 32]} Bd3 {[%emt 0:01:24]} 25. Rfd1 {[%emt 0:01:15][%cal Oa3a4]} Qg6 {[%emt 0:01:31]} 26. Be1 {[%emt 0:01:30][%cal Oa3a4]} Ba6 {[%emt 0:06:12]} 27. Qd2 {[%emt 0:01:08]} Ne4 {[%emt 0:00:43]} 28. Qb2 {[%emt 0:00:03]} Rab8 {[%emt 0:00:59]} 29. Bb4 {[%emt 0:00:08]} Rb6 {[%emt 0:00:07]} 30. Rac1 {[%emt 0:00:49]} Re8 {[%emt 0:01:20]} 31. Re1 {[%emt 0:00:50]} Bc4 {[%emt 0:01:20]} 32. f3 $2 {[%emt 0:00:47]} (32. Qc2 $16) 32... Nc5 $1 $15 {[%emt 0:00:23][%cal Be4c5,Bc5d3,Bd3e1][%mdl 96] [#] Pin} 33. Qc3 {[%emt 0:02:52]} Nd3 {[%emt 0:00:13]} 34. Rcd1 {[%emt 0:00:40]} Nxe1 {[%emt 0:00:27]} 35. Rxe1 {[%emt 0:00:01]} Qh5 {[%emt 0:01:05]} 36. Qd2 {[%emt 0:00:22]} Qe5 {[%emt 0:01:31]} 37. Bc3 {[%emt 0:00:27]} Rg6 {[%emt 0:00:29]} 38. a4 {[%emt 0:01:12]} Qh5 {[%emt 0:01:10]} 39. a5 {[%emt 0:00:17]} Rc8 {[%emt 0:00:23]} 40. Rb1 {[%emt 0:00:00]} Re8 {[%emt 0:00:00]} 41. Re1 {[%emt 0:03:42]} Qg5 {[%emt 0:03:32] Weighted Error Value: White=0.15 (very precise) /Black=0.11 (very precise)} 1/2-1/2